fUST/lending_fUST_20251021
["ID","MTS","AMOUNT","RATE_DAILY","PERIOD"]
[391909135,1760976015620,500.0,0.00023464,10]
[391909138,1760976216933,8717.8862951,0.00023433,2]
[391909139,1760976216957,10000.01,0.00023433,2]
[391909140,1760976216982,1344.7749588,0.00023433,2]
[391909142,1760976285224,10000.01,0.00024,2]
[391909143,1760976285261,10000.01,0.00024,2]
[391909144,1760976285295,0.87,0.00024,2]
[391909145,1760976311634,324.439999,0.0002,2]
[391909146,1760976326253,20000.02,0.00024,2]
[391909197,1760976632501,-156.80778272,0.000242,2]
[391909198,1760976632511,-732.0,0.00024299,2]
[391909199,1760976632520,-3121.29221727,0.000243,2]
[391909200,1760976632531,-1904.0000002,0.000243,2]
[391909205,1760976632606,-908.48178767,0.000243,2]
[391909207,1760976632618,-3356.96615543,0.000243,2]
[391909209,1760976632627,-300.0,0.00024395,2]
[391909211,1760976632637,-150.0,0.00024396,2]
[391909213,1760976632647,-1200.0,0.00024396,2]
[391909215,1760976632657,-500.0,0.00024397,2]
[391909217,1760976632666,-500.0,0.00024397,2]
[391909219,1760976632677,-500.0,0.00024397,2]
[391909221,1760976632686,-500.0,0.00024397,2]
[391909223,1760976632696,-261.14189334,0.00024397,2]
[391909225,1760976632705,-300.0,0.000244,2]
[391909227,1760976632715,-300.0,0.000244,2]
[391909229,1760976632724,-50000.0,0.000244,2]
[391909231,1760976632733,-158.76952916,0.000244,2]
[391909233,1760976632743,-160.0,0.00024442,2]
[391909235,1760976632752,-507.01973674,0.00024473,2]
[391909236,1760976632762,-500.0,0.00024473,2]
[391909237,1760976632772,-500.0,0.00024473,2]
[391909239,1760976632781,-500.0,0.00024473,2]
[391909242,1760976632794,-500.0,0.00024473,2]
[391909244,1760976632804,-500.0,0.00024473,2]
[391909246,1760976632813,-500.0,0.00024473,2]
[391909248,1760976632822,-500.0,0.00024473,2]
[391909250,1760976632832,-500.0,0.00024473,2]
[391909252,1760976632841,-500.0,0.00024473,2]
[391909254,1760976632852,-500.0,0.00024473,2]
[391909256,1760976632861,-292.16202918,0.00024473,2]
[391909257,1760976632870,-500.0,0.00024473,2]
[391909258,1760976632879,-500.0,0.00024473,2]
[391909259,1760976632889,-169.73600981,0.00024473,2]
[391909260,1760976632898,-502.17932592,0.00024473,2]
[391909261,1760976632907,-481.13614356,0.00024473,2]
[391909262,1760976632917,-500.0,0.00024473,2]
[391909263,1760976632926,-500.0,0.00024473,2]
[391909264,1760976632936,-500.0,0.00024473,2]
[391909265,1760976632945,-500.0,0.00024486,2]
[391909266,1760976632955,-393.61,0.00024486,2]
[391909268,1760976632964,-500.0,0.00024486,2]
[391909270,1760976632973,-638.04578801,0.00024486,2]
[391909271,1760976632982,-500.0,0.00024486,2]
[391909272,1760976632991,-500.0,0.00024486,2]
[391909273,1760976633000,-500.0,0.00024486,2]
[391909274,1760976633009,-500.0,0.00024486,2]
[391909275,1760976633019,-500.0,0.00024486,2]
[391909276,1760976633028,-506.58718498,0.00024486,2]
[391909277,1760976633038,-402.9601108,0.00024487,10]
[391909278,1760976633047,-376.88,0.00024487,3]
[391909279,1760976633057,-188.44,0.00024487,3]
[391909280,1760976633066,-565.33,0.00024487,3]
[391909282,1760976633075,-4945.72,0.00024487,10]
[391909284,1760976633085,-185.7193237,0.00024496,2]
[391909286,1760976633095,-342.19535003,0.00024496,2]
[391909287,1760976633104,-122535.00971736,0.00024497,2]
[391909344,1760976638481,-373.4801021,0.000243,2]
[391909346,1760976638491,-500.0,0.00024473,2]
[391909348,1760976638500,-638.14437958,0.00024485,2]
[391909350,1760976638509,-459.465857,0.00024485,2]
[391909352,1760976638520,-40.534143,0.00024485,2]
[391909354,1760976638530,-500.0,0.00024485,2]
[391909356,1760976638539,-500.0,0.00024485,2]
[391909358,1760976638549,-430.62468735,0.00024485,2]
[391909360,1760976638559,-376.45190951,0.00024485,2]
[391909362,1760976638568,-500.0,0.00024485,2]
[391909364,1760976638578,-500.0,0.00024485,2]
[391909366,1760976638587,-270.97407736,0.00024485,2]
[391909368,1760976638600,-229.02592264,0.00024485,2]
[391909370,1760976638610,-500.0,0.00024485,2]
[391909372,1760976638620,-579.0785485,0.00024485,2]
[391909374,1760976638629,-500.0,0.00024485,2]
[391909376,1760976638639,-500.0,0.00024485,2]
[391909378,1760976638649,-500.0,0.00024485,2]
[391909380,1760976638658,-500.0,0.00024485,2]
[391909382,1760976638669,-500.0,0.00024485,2]
[391909383,1760976638678,-599.41016391,0.00024485,2]
[391909384,1760976638687,-334.06524278,0.00024485,2]
[391909385,1760976638696,-6967.01299753,0.00024497,2]
[391909386,1760976638707,-13548.85389181,0.00024497,2]
[391909387,1760976638718,-37293.70318164,0.00024497,2]
[391909388,1760976638745,-189655.42021166,0.00024497,2]
[391909389,1760976638755,-11464.76,0.000245,7]
[391909390,1760976638764,-500.0,0.000245,7]
[391909391,1760976638773,-151.0,0.000245,7]
[391909392,1760976638783,-151.0,0.000245,7]
[391909393,1760976638792,-500.0,0.000245,7]
[391909394,1760976638801,-151.0,0.000245,7]
[391909395,1760976638810,-500.0,0.000245,7]
[391909396,1760976638819,-500.0,0.000245,7]
[391909397,1760976638829,-500.0,0.000245,7]
[391909398,1760976638838,-305.36256827,0.000245,7]
[391909400,1760976638848,-151.0,0.000245,7]
[391909402,1760976638858,-500.0,0.000245,7]
[391909404,1760976638867,-1402.0,0.000245,7]
[391909406,1760976638880,-500.0,0.000245,7]
[391909408,1760976638890,-294.96151405,0.000245,7]
[391909410,1760976638899,-500.0,0.00024555,7]
[391909412,1760976638909,-151.0,0.00024555,7]
[391909413,1760976638918,-151.0,0.00024555,7]
[391909414,1760976638927,-500.0,0.00024555,7]
[391909415,1760976638937,-151.59120751,0.00024555,7]
[391909416,1760976638947,-500.0,0.00024555,7]
[391909417,1760976638957,-151.0,0.00024555,7]
[391909418,1760976638966,-500.0,0.00024555,7]
[391909419,1760976638975,-1402.0,0.00024555,7]
[391909420,1760976638985,-500.0,0.00024555,7]
[391909421,1760976638995,-627.27537848,0.00024572,2]
[391909422,1760976639004,-501.41458571,0.00024572,2]
[391909423,1760976639013,-500.0,0.00024572,2]
[391909424,1760976639023,-500.0,0.00024596,2]
[391909425,1760976639033,-500.0,0.00024596,2]
[391909426,1760976639043,-500.0,0.00024596,2]
[391909427,1760976639052,-500.0,0.00024596,2]
[391909428,1760976639061,-500.0,0.00024596,2]
[391909429,1760976639071,-500.0,0.00024596,2]
[391909430,1760976639080,-500.0,0.00024596,2]
[391909431,1760976639090,-500.0,0.00024596,2]
[391909432,1760976639100,-500.0,0.00024596,2]
[391909433,1760976639110,-500.0,0.00024596,2]
[391909434,1760976639120,-500.0,0.00024596,2]
[391909435,1760976639130,-500.0,0.00024596,2]
[391909436,1760976639139,-500.0,0.00024596,2]
[391909437,1760976639149,-500.0,0.00024596,2]
[391909438,1760976639160,-500.0,0.00024596,2]
[391909439,1760976639170,-500.0,0.00024596,2]
[391909440,1760976639179,-500.0,0.00024596,2]
[391909441,1760976639188,-500.0,0.00024596,2]
[391909442,1760976639197,-152.50400688,0.0002461,7]
[391909443,1760976639213,-151.0,0.0002461,7]
[391909444,1760976639223,-151.0,0.0002461,7]
[391909445,1760976639232,-500.0,0.0002461,7]
[391909446,1760976639242,-500.0,0.0002461,7]
[391909447,1760976639253,-151.0,0.0002461,7]
[391909448,1760976639263,-500.0,0.0002461,7]
[391909449,1760976639272,-1402.0,0.0002461,7]
[391909450,1760976639283,-500.0,0.0002461,7]
[391909451,1760976639292,-151.0,0.00024664,7]
[391909452,1760976639302,-151.0,0.00024664,7]
[391909453,1760976639312,-500.0,0.00024664,7]
[391909454,1760976639322,-500.0,0.00024664,7]
[391909455,1760976639332,-151.0,0.00024664,7]
[391909456,1760976639341,-500.0,0.00024664,7]
[391909457,1760976639353,-1402.0,0.00024664,7]
[391909458,1760976639362,-500.0,0.00024664,7]
[391909459,1760976639371,-151.0,0.00024719,7]
[391909460,1760976639381,-151.0,0.00024719,7]
[391909461,1760976639390,-154.12276168,0.00024719,7]
[391909462,1760976639400,-152.89452512,0.00024719,7]
[391909463,1760976639409,-151.0,0.00024719,7]
[391909464,1760976639418,-500.0,0.00024719,7]
[391909465,1760976639427,-1402.0,0.00024719,7]
[391909466,1760976639437,-500.0,0.00024719,7]
[391909467,1760976639447,-199.88629968,0.00024774,7]
[391909468,1760976639456,-152.27320854,0.00024774,7]
[391909469,1760976639466,-174.06321435,0.00024774,7]
[391909470,1760976639476,-500.0,0.00024774,7]
[391909471,1760976639486,-1402.0,0.00024774,7]
[391909472,1760976639496,-500.0,0.00024774,7]
[391909473,1760976639505,-601.95966192,0.000248,2]
[391909474,1760976639515,-500.0,0.00024829,7]
[391909475,1760976639524,-1402.0,0.00024829,7]
[391909476,1760976639534,-500.0,0.00024829,7]
[391909477,1760976639546,-500.0,0.00024873,2]
[391909478,1760976639556,-500.0,0.00024873,2]
[391909479,1760976639565,-500.0,0.00024873,2]
[391909480,1760976639574,-500.0,0.00024873,2]
[391909481,1760976639584,-300.62932651,0.00024884,7]
[391909482,1760976639594,-1402.0,0.00024884,7]
[391909483,1760976639606,-500.0,0.00024884,7]
[391909484,1760976639616,-300.0,0.00024884,20]
[391909485,1760976639626,-300.0,0.00024884,20]
[391909486,1760976639636,-300.0,0.00024884,20]
[391909487,1760976639646,-300.0,0.00024884,20]
[391909488,1760976639655,-300.0,0.00024884,20]
[391909489,1760976639665,-300.0,0.00024884,20]
[391909490,1760976639675,-300.0,0.00024884,20]
[391909491,1760976639685,-300.0,0.00024884,20]
[391909492,1760976639695,-300.0,0.00024884,20]
[391909493,1760976639705,-300.0,0.00024884,20]
[391909494,1760976639715,-300.0,0.00024884,20]
[391909495,1760976639724,-300.0,0.00024884,20]
[391909496,1760976639734,-300.0,0.00024884,20]
[391909497,1760976639744,-300.0,0.00024884,20]
[391909498,1760976639754,-300.0,0.00024884,20]
[391909499,1760976639764,-200.65322064,0.0002489,2]
[391909500,1760976639774,-1402.0,0.00024938,7]
[391909501,1760976639785,-500.0,0.00024938,7]
[391909502,1760976639795,-600.0,0.00024961,20]
[391909503,1760976639805,-1402.0,0.00024993,7]
[391909504,1760976639816,-500.0,0.00024993,7]
[391909505,1760976639827,-172.5,0.00024996,2]
[391909506,1760976639837,-1000.0,0.00025021,2]
[391909507,1760976639848,-500.0,0.00025021,2]
[391909508,1760976639859,-500.0,0.00025025,2]
[391909509,1760976639869,-500.0,0.00025025,2]
[391909510,1760976639879,-500.0,0.00025025,2]
[391909511,1760976639889,-1402.0,0.00025048,7]
[391909513,1760976639899,-500.0,0.00025048,7]
[391909515,1760976639908,-1402.0,0.00025103,7]
[391909517,1760976639918,-500.0,0.00025103,7]
[391909519,1760976639927,-1402.0,0.00025158,7]
[391909521,1760976639936,-500.0,0.00025158,7]
[391909523,1760976639946,-199.0,0.00025205,7]
[391909524,1760976639955,-1402.0,0.00025212,7]
[391909525,1760976639964,-500.0,0.00025212,7]
[391909526,1760976639974,-1402.0,0.00025267,7]
[391909527,1760976639983,-500.0,0.00025267,7]
[391909528,1760976639993,-1402.0,0.00025322,7]
[391909529,1760976640002,-500.0,0.00025322,7]
[391909530,1760976640012,-1075.0659567,0.00025367,2]
[391909531,1760976640022,-4295.96356298,0.00025367,2]
[391909532,1760976640031,-1402.0,0.00025377,7]
[391909533,1760976640041,-500.0,0.00025377,7]
[391909534,1760976640053,-1000.0,0.00025421,2]
[391909535,1760976640063,-1000.0,0.00025421,2]
[391909536,1760976640072,-433.28505328,0.00025421,2]
[391909537,1760976640082,-1000.0,0.00025421,2]
[391909538,1760976640091,-1402.0,0.00025432,7]
[391909539,1760976640102,-500.0,0.00025432,7]
[391909540,1760976640111,-199.0,0.00025479,8]
[391909541,1760976640121,-1402.0,0.00025486,7]
[391909542,1760976640131,-500.0,0.00025486,7]
[391909543,1760976640140,-1402.0,0.00025541,7]
[391909544,1760976640151,-265.77737133,0.00025541,7]
[391909545,1760976640161,-1500.0,0.00025568,2]
[391909546,1760976640171,-1000.0,0.00025573,2]
[391909548,1760976640181,-290.63311626,0.00025573,2]
[391909550,1760976640191,-1402.0,0.00025596,7]
[391909551,1760976640201,-195.0,0.00025596,2]
[391909553,1760976640213,-1402.0,0.00025651,7]
[391909555,1760976640223,-1402.0,0.00025705,7]
[391909556,1760976640232,-160.0,0.00025715,2]
[391909557,1760976640242,-199.0,0.00025753,9]
[391909558,1760976640251,-1421.79249431,0.0002576,7]
[391909559,1760976640261,-753.76,0.00025857,3]
[391909560,1760976640270,-376.88,0.00025857,3]
[391909561,1760976640280,-175.0,0.00025918,18]
[391909562,1760976640290,-1500.0,0.00025968,2]
[391909563,1760976640299,-520.68978413,0.00025968,2]
[391909564,1760976640308,-1446.45912168,0.00025968,2]
[391909565,1760976640317,-162.0,0.00026,7]
[391909566,1760976640326,-318.49,0.00026027,10]
[391909567,1760976640336,-2000.0,0.00026116,2]
[391909569,1760976640345,-1500.0,0.00026121,2]
[391909571,1760976640356,-373.4801021,0.00026186,2]
[391909573,1760976640366,-217.5,0.00026196,2]
[391909575,1760976640376,-260.0,0.00026263,2]
[391909577,1760976640385,-420.0,0.00026444,2]
[391909578,1760976640395,-2000.0,0.00026516,2]
[391909579,1760976640405,-2500.0,0.00026664,2]
[391909580,1760976640415,-2000.0,0.00026669,2]
[391909581,1760976640424,-151.0,0.000267,14]
[391909582,1760976640434,-695.33310914,0.00026702,2]
[391909583,1760976640443,-2778.55110413,0.00026702,2]
[391909584,1760976640452,-659.5139328,0.00026702,2]
[391909585,1760976640462,-2635.41767546,0.00026702,2]
[391909586,1760976640471,-240.0,0.00026796,2]
[391909587,1760976640481,-360.0,0.00026811,2]
[391909588,1760976640491,-180.411689,0.00027,2]
[391909589,1760976640501,-200.65322064,0.00027001,2]
[391909590,1760976640510,-119001.4413458,0.00027011,2]
[391909591,1760976640519,-1644.2711937,0.00027012,2]
[391909592,1760976640530,-7912.276283,0.00027012,2]
[391909593,1760976640540,-1515.50384054,0.00027064,2]
[391909594,1760976640550,-1414.82192606,0.00027067,2]
[391909595,1760976640560,-480.0,0.00027139,7]
[391909596,1760976640569,-364.87794505,0.00027155,2]
[391909597,1760976640578,-656.78030109,0.00027155,2]
[391909598,1760976640587,-1167.60942417,0.00027155,2]
[391909599,1760976640597,-526.00321149,0.00027155,2]
[391909600,1760976640607,-946.80578067,0.00027155,2]
[391909602,1760976640616,-1683.21027675,0.00027155,2]
[391909604,1760976640629,-2630.01605743,0.00027155,2]
[391909606,1760976640639,-3787.2231227,0.00027155,2]
[391909608,1760976640648,-5154.83147256,0.00027155,2]
[391909610,1760976640657,-6732.84110702,0.00027155,2]
[391909611,1760976640667,-163.0,0.00027185,7]
[391909612,1760976640677,-3000.0,0.00027212,2]
[391909613,1760976640687,-2500.0,0.00027217,2]
[391909614,1760976640697,-1414.82192606,0.00027265,2]
[391909615,1760976640707,-151.0,0.000273,19]
[391909616,1760976640716,-460.0,0.00027359,2]
[391909617,1760976640726,-262.5,0.00027396,2]
[391909618,1760976640736,-720.0,0.00027457,30]
[391909619,1760976640746,-1414.82192606,0.00027562,2]
[391909620,1760976640756,-480.0,0.00027577,2]
[391909621,1760976640766,-205.0,0.00027643,7]
[391909622,1760976640777,-160.0,0.00027671,2]
[391909623,1760976640786,-402.9601108,0.00027671,2]
[391909624,1760976640796,-150.0,0.00027686,5]
[391909625,1760976640805,-2032.13,0.000277,2]
[391909626,1760976640815,-283.79651198,0.0002775,3]
[391909627,1760976640824,-3500.0,0.0002776,5]
[391909628,1760976640834,-3000.0,0.00027765,5]
[391909629,1760976640846,-151.0,0.000279,13]
[391909630,1760976640857,-560.0,0.00027907,2]
[391909631,1760976640866,-205.0,0.00027927,2]
[391909632,1760976640875,-178.575,0.00027935,18]
[391909633,1760976640885,-151.0,0.00027968,5]
[391909634,1760976640896,-151.0,0.00027968,5]
[391909635,1760976640905,-213.3186526,0.00027968,5]
[391909636,1760976640915,-151.37473815,0.00027968,5]
[391909637,1760976640924,-500.0,0.00027968,5]
[391909638,1760976640934,-500.0,0.00027968,5]
[391909639,1760976640943,-151.0,0.00027968,5]
[391909640,1760976640953,-500.0,0.00027968,5]
[391909641,1760976640962,-500.0,0.00027968,5]
[391909642,1760976640973,-151.0,0.00027968,5]
[391909643,1760976640983,-500.0,0.00027968,5]
[391909644,1760976640992,-500.0,0.00027968,5]
[391909645,1760976641002,-500.0,0.00027968,5]
[391909646,1760976641011,-151.0,0.00027968,5]
[391909647,1760976641021,-151.0,0.00027968,5]
[391909648,1760976641031,-151.0,0.00027968,5]
[391909649,1760976641040,-272.99309488,0.00027968,5]
[391909650,1760976641050,-285.0,0.00027996,2]
[391909651,1760976641059,-151.0,0.00028023,5]
[391909652,1760976641068,-151.0,0.00028023,5]
[391909653,1760976641078,-500.0,0.00028023,5]
[391909654,1760976641088,-580.5971618,0.00028023,5]
[391909655,1760976641098,-151.0,0.00028023,5]
[391909656,1760976641107,-500.0,0.00028023,5]
[391909657,1760976641117,-500.0,0.00028023,5]
[391909658,1760976641127,-151.0,0.00028023,5]
[391909659,1760976641136,-500.0,0.00028023,5]
[391909660,1760976641146,-500.0,0.00028023,5]
[391909661,1760976641156,-560.46134789,0.00028023,5]
[391909662,1760976641166,-151.61557415,0.00028023,5]
[391909663,1760976641175,-151.0,0.00028023,5]
[391909664,1760976641185,-151.0,0.00028023,5]
[391909665,1760976641195,-152.29305162,0.00028078,5]
[391909666,1760976641208,-151.56260228,0.00028078,5]
[391909667,1760976641219,-500.0,0.00028078,5]
[391909668,1760976641229,-151.0,0.00028078,5]
[391909669,1760976641240,-500.0,0.00028078,5]
[391909670,1760976641251,-500.0,0.00028078,5]
[391909671,1760976641261,-249.29810661,0.00028078,5]
[391909672,1760976641273,-500.0,0.00028078,5]
[391909673,1760976641285,-500.0,0.00028078,5]
[391909674,1760976641295,-151.0,0.00028078,5]
[391909675,1760976641304,-151.0,0.00028078,5]
[391909676,1760976641314,-500.0,0.00028132,5]
[391909677,1760976641323,-202.35749936,0.00028132,5]
[391909678,1760976641333,-500.0,0.00028132,5]
[391909679,1760976641342,-500.0,0.00028132,5]
[391909680,1760976641354,-500.0,0.00028132,5]
[391909681,1760976641363,-500.0,0.00028132,5]
[391909682,1760976641372,-151.0,0.00028132,5]
[391909683,1760976641381,-199.93893208,0.00028132,5]
[391909684,1760976641391,-500.0,0.00028187,5]
[391909685,1760976641400,-169.26850405,0.00028187,5]
[391909686,1760976641410,-500.0,0.00028187,5]
[391909687,1760976641419,-500.0,0.00028187,5]
[391909688,1760976641428,-274.4352498,0.00028187,5]
[391909689,1760976641437,-300.0,0.00028234,5]
[391909690,1760976641447,-500.0,0.00028242,5]
[391909691,1760976641641,-500.0,0.00028242,5]
[391909692,1760976641651,-357.342709,0.00028242,5]
[391909693,1760976641661,-500.0,0.00028297,5]
[391909694,1760976641670,-500.0,0.00028297,5]
[391909695,1760976641680,-3000.0,0.00028308,5]
[391909696,1760976641690,-3500.0,0.00028313,5]
[391909697,1760976641702,-503.29527612,0.00028352,5]
[391909698,1760976641712,-500.0,0.00028352,5]
[391909699,1760976641721,-464.01502405,0.00028406,5]
[391909700,1760976641731,-660.0,0.00028455,2]
[391909701,1760976641740,-11464.76,0.000285,7]
[391909702,1760976641750,-151.0,0.000285,16]
[391909703,1760976641760,-307.5,0.00028596,2]
[391909704,1760976641769,-587.0,0.00028666,2]
[391909705,1760976641786,-150.0,0.00028767,5]
[391909706,1760976641796,-450.0,0.00028782,5]
[391909707,1760976641805,-1389.64024831,0.0002879,2]
[391909708,1760976641815,-5553.00243226,0.0002879,2]
[391909709,1760976641825,-4000.0,0.00028861,5]
[391909710,1760976641835,-800.0,0.00028968,2]
[391909711,1760976641845,-151.0,0.00029,14]
[391909712,1760976641856,-760.0,0.00029003,2]
[391909713,1760976641865,-400.0,0.00029136,14]
[391909714,1760976641875,-330.0,0.00029196,2]
[391909715,1760976641884,-2032.13,0.000293,2]
[391909716,1760976641894,-250.0,0.00029315,5]
[391909717,1760976641904,-600.0,0.0002933,5]
[391909718,1760976641914,-4500.0,0.00029409,5]
[391909719,1760976641924,-860.0,0.00029551,2]
[391909720,1760976641935,-5000.0,0.00029554,2]
[391909721,1760976641947,-151.0,0.000296,20]
[391909722,1760976641958,-179.71246006,0.00029701,4]
[391909723,1760976641968,-352.5,0.00029796,2]
[391909724,1760976641978,-350.0,0.00029863,5]
[391909725,1760976641988,-383.61310881,0.00029877,5]
[391909726,1760976641998,-180.411689,0.0002995,2]
[391909727,1760976642010,-154.025311,0.0002995,2]
[391909728,1760976642019,-5000.0,0.00029957,5]
[391909729,1760976642030,-168.0,0.00029987,2]
[391909730,1760976642040,-250.0,0.0003,7]
[391909731,1760976642050,-180.411689,0.0003,15]
[391909732,1760976642059,-155.0,0.0003,14]
[391909733,1760976642069,-207.0,0.00030073,2]
[391909734,1760976642078,-960.0,0.00030099,2]
[391909735,1760976642088,-11464.76,0.000301,7]
[391909736,1760976642099,-1000.0,0.0003013,14]
[391909737,1760976642110,-744.84740603,0.0003013,14]
[391909738,1760976642119,-197.55868691,0.0003013,14]
[391909739,1760976642128,-10000.0,0.00030137,2]
[391909740,1760976642139,-10000.0,0.00030137,2]
[391909741,1760976642150,-10000.0,0.00030137,2]
[391909742,1760976642159,-10000.0,0.00030137,2]
[391909743,1760976642169,-10000.0,0.00030137,2]
[391909744,1760976642178,-909.0,0.00030137,2]
[391909745,1760976642187,-3732.30738061,0.00030137,120]
[391909746,1760976642197,-50000.0,0.00030137,120]
[391909747,1760976642211,-205.0,0.00030162,2]
[391909748,1760976642222,-402.9601108,0.000302,120]
[391909749,1760976642232,-864.0,0.00030203,30]
[391909750,1760976642242,-168.0,0.00030225,2]
[391909751,1760976642253,-168.0,0.00030239,2]
[391909752,1760976642264,-250.0,0.0003025,2]
[391909753,1760976642275,-2847.33034823,0.00030306,2]
[391909754,1760976642285,-205.0,0.00030311,2]
[391909755,1760976642295,-207.0,0.00030324,7]
[391909756,1760976642306,-375.0,0.00030396,2]
[391909757,1760976642317,-450.0,0.00030411,5]
[391909758,1760976642327,-205.0,0.00030412,2]
[391909759,1760976642337,-1644.2711937,0.00030433,2]
[391909760,1760976642347,-800.0,0.00030485,2]
[391909761,1760976642356,-5500.0,0.00030504,5]
[391909762,1760976642366,-900.0,0.00030647,2]
[391909763,1760976642376,-2032.13,0.000307,2]
[391909764,1760976642386,-11068.56444917,0.000307,6]
[391909765,1760976642395,-164.0,0.00030849,42]
[391909766,1760976642405,-550.0,0.00030958,5]
[391909767,1760976642416,-397.5,0.00030996,2]
[391909768,1760976642427,-212.76823038,0.00031,120]
[391909769,1760976642436,-1068.35650587,0.00031,120]
[391909770,1760976642446,-1887.27596917,0.00031,120]
[391909771,1760976642456,-170.50468951,0.00031,120]
[391909772,1760976642465,-496.33676355,0.00031,120]
[391909773,1760976642475,-165.92119715,0.00031,120]
[391909774,1760976642486,-204.00726077,0.00031,120]
[391909775,1760976642495,-1224.64,0.00031,2]
[391909776,1760976642508,-402.9601108,0.00031,7]
[391909777,1760976642520,-402.9601108,0.00031,120]
[391909778,1760976642531,-2000.0,0.00031052,5]
[391909779,1760976642540,-823.0,0.00031074,2]
[391909780,1760976642550,-402.9601108,0.000311,120]
[391909781,1760976642559,-152.35,0.00031114,15]
[391909782,1760976642568,-152.36,0.00031193,15]
[391909783,1760976642578,-152.35,0.00031214,15]
[391909784,1760976642588,-152.36,0.00031293,15]
[391909785,1760976642599,-152.38,0.00031314,15]
[391909786,1760976642609,-168.0,0.00031374,2]
[391909787,1760976642619,-296.94489944,0.00031427,2]
[391909788,1760976642628,-514.84070869,0.00031427,2]
[391909789,1760976642637,-250.0,0.00031427,2]
[391909790,1760976642647,-250.0,0.00031427,2]
[391909791,1760976642657,-250.0,0.00031427,2]
[391909792,1760976642666,-407.02076465,0.00031506,5]
[391909793,1760976642676,-168.0,0.00031557,2]
[391909794,1760976642686,-420.0,0.00031596,2]
[391909795,1760976642695,-11464.76,0.000316,7]
[391909796,1760976642705,-212.76823038,0.000319,120]
[391909797,1760976642714,-1068.35650587,0.000319,120]
[391909798,1760976642724,-1887.27596917,0.000319,120]
[391909799,1760976642733,-170.50468951,0.000319,120]
[391909800,1760976642743,-496.33676355,0.000319,120]
[391909801,1760976642752,-1181.52693667,0.00031901,5]
[391909802,1760976642762,-602.04565261,0.00031901,5]
[391909803,1760976642771,-4721.38163895,0.00031901,5]
[391909804,1760976642779,-180.411689,0.00031946,15]
[391909805,1760976642789,-154.025311,0.00031946,15]
[391909806,1760976642799,-533.88981491,0.00031975,2]
[391909807,1760976642809,-151.0,0.00032,11]
[391909808,1760976642818,-159.97751647,0.00032084,7]
[391909809,1760976642827,-2032.13,0.000321,2]
[391909810,1760976642836,-442.5,0.00032196,2]
[391909811,1760976642845,-1765.4674741,0.00032324,2]
[391909814,1760976642854,-200.0,0.00032468,120]
[391909815,1760976642864,-553.64373807,0.00032523,2]
[391909816,1760976642873,-200.0,0.00032667,120]
[391909817,1760976642884,-1000.0,0.00032788,15]
[391909818,1760976642894,-465.0,0.00032796,2]
[391909819,1760976642905,-168.0,0.00032807,2]
[391909820,1760976642915,-168.0,0.00032869,2]
[391909821,1760976642926,-2999.0,0.00032876,120]
[391909822,1760976642937,-800.0,0.00032887,2]
[391909823,1760976642947,-1068.35650587,0.000329,120]
[391909824,1760976642956,-1887.27596917,0.000329,120]
[391909825,1760976642966,-170.50468951,0.000329,120]